Cogmind - Beta 16 @@@ ROGUE MODE // 2025.11.25 @ 22:40:55 Player: FR-13D Result: Destroyed by G-47 Trooper with Particle Gun Performance ------------- Evolutions (2) 1000 Regions Visited (3) 600 Robots Destroyed (64) 320 Value Destroyed (1703) 1703 Prototype IDs (5) 100 Alien Tech Used (0) 0 Bonus (0) 0 TOTAL SCORE: 3723 Bonus ------- None Cogmind --------- Core Integrity 0/550 Matter 269/300 Energy 14/100 System Corruption 0% Temperature Cool (9) Movement Treading (160) Location -8/Materials Parts ------- > --- POWER (1) -------- (None) > --- PROPULSION (2) --- Light Treads > --- UTILITY (6) ------ Improved Signal Interpreter Targeting Computer > --- WEAPON (2) ------- (None) > --- INVENTORY (5) ---- Improved Terrain Scanner ECM Suite Advanced Beam Cannon Rocket Launcher Plasma Cutter Peak State ------------ > --- POWER ------------ Improved Deuterium Engine > --- PROPULSION ------- Light Treads Light Treads > --- UTILITY ---------- Improved Heat Sink Large Storage Unit Improved Sensor Array Improved Signal Interpreter Particle Charger Hardened Light Armor Plating > --- WEAPON ----------- Spread Laser Advanced Beam Cannon > --- INVENTORY -------- Deuterium Engine Light Treads Cooling System Improved Terrain Scanner Targeting Computer ECM Suite Hardened Light Armor Plating Pulse Rifle Pulse Rifle Advanced Beam Cannon Advanced Beam Cannon Rocket Launcher Rocket Launcher Plasma Cutter Axe [Rating: 29] Favorites ----------- Power Ion Engine Engine Ion Engine Power Core Nuclear Core Propulsion Light Treads Treads Light Treads Wheel Wheel Utility Large Storage Unit Device Improved Heat Sink Storage Large Storage Unit Processor Improved Signal Interpreter Protection Medium Armor Plating Weapon Spread Laser Energy Gun Spread Laser Energy Cannon Advanced Beam Cannon Launcher Grenade Launcher Special Weapon Mining Laser Impact Weapon Hammer Slashing Weapon Axe Build | -11 -10 -9 -8 ------- Run | Yrd Mat Mat Mat Slots Evolved 4 | . . 2 2 Power . | . . . . Propulsion . | . . . . Utility 4 | . . 2 2 Weapon . | . . . . Parts Attached 60 | 7 8 19 26 Power 8 | 1 1 2 4 Engine 7 | 1 1 2 3 Core 1 | . . . 1 Reactor . | . . . . Propulsion 10 | 2 . 5 3 Treads 8 | 2 . 3 3 Leg . | . . . . Wheel 2 | . . 2 . Hover . | . . . . Flight . | . . . . Utility 25 | 2 3 7 13 Device 11 | 1 . 3 7 Storage 2 | 1 1 . . Processor 2 | . . . 2 Hackware . | . . . . Protection 10 | . 2 4 4 Artifact . | . . . . Weapon 17 | 2 4 5 6 Energy Gun 7 | 2 1 1 3 Energy Cannon 5 | . 1 2 2 Ballistic Gun . | . . . . Ballistic Cannon . | . . . . Launcher 1 | . 1 . . Special Weapon 1 | . . 1 . Impact Weapon 1 | . 1 . . Slashing Weapon 2 | . . 1 1 Piercing Weapon . | . . . . Special Melee Weapon . | . . . . Unidentified Prototypes 1 | . . 1 . Parts Lost 18 | . 1 . 17 Power 2 | . . . 2 Propulsion 3 | . . . 3 Utility 5 | . . . 5 Weapon 8 | . 1 . 7 Highest Loss Streak 16 | . 1 . 16 To Critical Strikes . | . . . . Average Backups 12 | 2 10 14 14 Power 1 | . 1 1 . Propulsion 2 | 1 3 3 2 Utility 4 | . 3 5 5 Weapon 3 | . 1 4 5 Tool/Special . | . . . . Unused Backups 10 | 1 . 1 8 Power 1 | . . . 1 Propulsion 1 | 1 . . . Utility 3 | . . . 3 Weapon 4 | . . 1 3 Tool/Special 1 | . . . 1 Average Slot Usage (%) 97 | . 100 98 93 Engine 10 | . 14 11 6 Treads 19 | . 28 14 16 Wheel 2 | . . 7 . Device 13 | . 8 15 16 Storage 11 | . 14 11 8 Processor 2 | . . . 7 Protection 13 | . 5 16 16 Energy Gun 12 | . 21 8 8 Energy Cannon 7 | . 6 9 8 Peak Build Rating 29 | 7 9 21 29 Average Rating 16 | 5 8 15 24 On Entrance 8 | . 7 8 19 Avg Prop Armor Cover (%) . | . . . . Naked Turns . | . . . . Heaviest Build 57 | 12 34 49 57 Greatest Support 40 | 40 40 40 40 Greatest Overweight (x) 2 | . . 2 2 Average Overweight (x) . | . . . . Largest Inventory Capacity 15 | 8 15 15 15 Average Capacity 14 | 7 14 15 14 Most Carried 15 | 4 15 15 15 Average Carried 12 | 2 10 14 14 Final Capacity 15 | 8 15 15 5 Final Carried 15 | 3 15 15 5 Class Distribution -------------------- 91% | Mutant 8% | Scavenger-Mutant Dominant Class ---------------- Mutant | -10/Materials Mutant | -9/Materials Mutant | -8/Materials Resources | -11 -10 -9 -8 ----------- Run | Yrd Mat Mat Mat Matter Collected 1188 | 270 104 456 358 Remotely . | . . . . Salvage Created 1847 | 124 351 626 746 Parts 119 | 3 23 36 57 Haulers Intercepted 5 | . 2 3 . Recyclers Shooed 3 | . . . 3 Parts Field Recycled . | . . . . Retrieved Matter . | . . . . Parts Self-Destructed . | . . . . Prevented . | . . . . Parts Restored . | . . . . Kills | -11 -10 -9 -8 ------- Run | Yrd Mat Mat Mat Combat Hostiles Destroyed 50 | . 12 18 20 Melee 8 | . 1 5 2 Guns 21 | . 7 2 12 Cannons 11 | . 2 3 6 AOE 10 | . 2 8 . Classes Destroyed 13 | 2 4 2 5 Worker 1 | . . . 1 Builder 1 | . . . 1 Tunneler 2 | 2 . . . Hauler 5 | . 2 3 . Recycler 2 | 1 . . 1 Watcher 3 | . 1 . 2 Swarmer 14 | . 6 4 4 Cutter 4 | . . . 4 Grunt 21 | . 6 10 5 Brawler 1 | . . 1 . Sentry 7 | . . 3 4 Specialist 2 | . . . 2 Heavy 1 | . . . 1 Best Kill Streak 9 | 3 3 9 5 Combat Bots Only 9 | . 3 9 5 Max Kills in Single Turn 3 | 1 2 3 2 Gunslinging . | . . . . Exploded 3 | . 2 3 . Melee 1 | . 1 1 1 Uniques/NPCs Destroyed . | . . . . Combat | -11 -10 -9 -8 -------- Run | Yrd Mat Mat Mat Hostile Shots Fired 319 | . 59 75 185 Missed 78 | . 19 23 36 Hits 241 | . 40 52 149 Melee 23 | . . 1 22 Projectile 218 | . 40 51 127 AOE 1 | . . . 1 Critical Strikes 15 | . . 1 14 Damage Taken 3921 | . 458 601 2862 Core 713 | . 28 126 559 Absorbed by Shields 52 | . . . 52 Redirected to Shielding 4 | . . 4 . Ignored by Resistances 55 | . . 55 . Regen/Repaired (Parts) 18 | . . . 18 Core Remaining (%) 85 | 100 88 68 . Volleys Fired 130 | 10 36 26 58 Largest 2 | 2 2 2 2 Hottest 133 | 90 125 133 133 Shots Fired 219 | 15 64 39 101 Gun 133 | 15 48 13 57 Cannon 70 | . 13 13 44 Launcher 13 | . 3 10 . Special 3 | . . 3 . Kinetic . | . . . . Thermal 206 | 15 61 29 101 Explosive 13 | . 3 10 . Electromagnetic . | . . . . Robot Hit Streak 17 | 8 17 7 14 Robot Miss Streak 6 | 1 5 4 6 Penetration Max . | . . . . Secondary Targets . | . . . . Shots Hit Robots 175 | 13 38 42 82 Core Hits 153 | 4 23 41 85 Critical Kills . | . . . . Critical Parts Destroyed . | . . . . Critical Strikes 5 | 1 1 2 1 Burn 2 | 1 1 . . Sever 3 | . . 2 1 Melee Attacks 34 | . . 27 7 Impact 3 | . . 3 . Slashing 31 | . . 24 7 Piercing . | . . . . Sneak Attacks 1 | . . 1 . Combat Hostiles . | . . . . Follow-up Attacks . | . . . . Damage Inflicted 4200 | 139 708 1725 1628 Guns 1436 | 139 323 163 811 Cannons 931 | . 141 169 621 Explosions 1015 | . 210 805 . Melee 776 | . . 588 188 Ramming 42 | . 34 . 8 Kinetic . | . . . . Thermal 2367 | 139 464 332 1432 Explosive 1015 | . 210 805 . Electromagnetic . | . . . . Impact 40 | . . 40 . Slashing 736 | . . 548 188 Piercing . | . . . . Highest Corruption . | . . . . Average Corruption . | . . . . Corruption Purged . | . . . . Corruption Blocked . | . . . . Overload Shots . | . . . . Overflow Damage 58 | . 11 47 . Projectiles . | . . . . Explosions 50 | . 11 39 . Melee 8 | . . 8 . Knockbacks 1 | . . . 1 Impact 1 | . . . 1 Kinetic . | . . . . Secondary . | . . . . Self-Inflicted Damage . | . . . . Shots . | . . . . Rammed 15 | . 12 . 3 Targets Rammed 15 | . 12 . 3 Kicked . | . . . . Crushed . | . . . . Highest Temperature 307 | 90 270 93 307 Average Temperature 72 | 41 85 31 74 Received Heat Transfer 1347 | . 210 264 873 Siege Activations . | . . . . Martial Activations . | . . . . Shielding Activations . | . . . . Robots Disrupted . | . . . . Combat Hostiles . | . . . . Robots Corrupted . | . . . . Combat Hostiles . | . . . . Parts Fried . | . . . . Impact Corruptions . | . . . . Robots Melted . | . . . . Combat Hostiles . | . . . . Parts Melted 6 | 2 2 . 2 Heat Transferred 4574 | 422 1225 572 2355 Parts Sabotaged . | . . . . Parts Stolen . | . . . . Parts Stripped . | . . . . Power Chain Reactions . | . . . . Alert | -11 -10 -9 -8 ------- Run | Yrd Mat Mat Mat Maximum Alert Level 1 | . . 1 . Low Security (%) 88 | 100 100 57 100 Level 1 11 | . . 42 . Level 2 . | . . . . Level 3 . | . . . . Level 4 . | . . . . Level 5 . | . . . . High Security . | . . . . Max Security . | . . . . Peak Influence 254 | 10 77 254 193 Initial 81 | . . 25 81 Average 81 | 1 18 139 97 Influence Increases 1567 | 15 387 556 609 Destroy 0b10 Robot/C 1000 | . 240 360 400 Destroy 0b10 Robot/NC 70 | 15 15 15 25 Destroy Leader 246 | . 56 96 94 Disable Machine 45 | . . 30 15 Destroy Structure 71 | . 16 55 . Lose Combat Pursuer 135 | . 60 . 75 Influence Decreases 1550 | 15 327 422 786 Entered New Map 148 | . . 35 113 Time Decay 1232 | 15 327 387 503 Lost Part 170 | . . . 170 Squads Dispatched 8 | . 3 2 3 Investigation 2 | . 2 . . Extermination . | . . . . Reinforcement 6 | . 1 2 3 Assault . | . . . . Garrison . | . . . . Intercept . | . . . . Searches Triggered . | . . . . Construction Impeded . | . . . . Haulers Reinforced . | . . . . Active Scanning Responses . | . . . . Cargo Convoy Interrupts . | . . . . Stealth | -11 -10 -9 -8 --------- Run | Yrd Mat Mat Mat Distress Signals 8 | . 5 1 2 Communications Jammed . | . . . . Distress Signals . | . . . . Times Spotted 87 | . 26 28 33 Peak Tracking Total 11 | . 3 11 8 Tactical Retreats 8 | . 4 1 3 ECM-based Alert Blocks 3 | . . 3 . Traps | -11 -10 -9 -8 ------- Run | Yrd Mat Mat Mat Traps Triggered 2 | . 2 . . Indirectly . | . . . . Trap Hack Attempts . | . . . . Triggered . | . . . . Disarmed . | . . . . Reprogrammed . | . . . . Reused . | . . . . Traps Extracted . | . . . . Installed . | . . . . Triggered . | . . . . Machines | -11 -10 -9 -8 ---------- Run | Yrd Mat Mat Mat Machines Disabled 3 | . . 2 1 Max in Single Turn 1 | . . 1 1 Machines Repaired . | . . . . Machines Dismantled . | . . . . Machines Sabotaged . | . . . . Overloaded Fab Kills . | . . . . Hacking | -11 -10 -9 -8 --------- Run | Yrd Mat Mat Mat Machines Accessed 8 | . 2 1 5 Terminals 6 | . 2 1 3 Fabricators . | . . . . Repair Stations 1 | . . . 1 Recycling Units . | . . . . Scanalyzers 1 | . . . 1 Garrison Access . | . . . . Total Hacks 20 | . 4 4 12 Successful 9 | . 1 1 7 Failed 11 | . 3 3 5 Catastrophic 1 | . . 1 . Database Lockouts . | . . . . Manual 8 | . 1 3 4 Terminals 15 | . 4 4 7 Fabricators . | . . . . Repair Stations 2 | . . . 2 Recycling Units . | . . . . Scanalyzers 3 | . . . 3 Garrison Access . | . . . . Terminal Hacks 4 | . 1 1 2 Prototype ID Bank 2 | . 1 1 . Alert Level 1 | . . . 1 Locate Traps 1 | . . . 1 Fabricator Hacks . | . . . . Repair Station Hacks 2 | . . . 2 Scan Component 1 | . . . 1 Repair 1 | . . . 1 Recycling Unit Hacks . | . . . . Scanalyzer 2 | . . . 2 Retrieve Study 2 | . . . 2 Garrison Access Hacks . | . . . . Unauthorized Hacks 1 | . . . 1 Terminals 1 | . . . 1 Botnet 1 | . . . 1 Fabricators . | . . . . Repair Stations . | . . . . Recycling Units . | . . . . Scanalyzers . | . . . . Garrison Access . | . . . . Data Cores Recovered . | . . . . Used . | . . . . Hacking Detections 7 | . 2 1 4 Full Trace Events . | . . . . Feedback Events . | . . . . Feedback Blocked . | . . . . Robot Schematics Acquired . | . . . . Robots Built . | . . . . Authchips . | . . . . Time . | . . . . Total Robot Build Rating . | . . . . Part Schematics Acquired . | . . . . Parts Built . | . . . . Authchips . | . . . . Time . | . . . . Total Part Build Rating . | . . . . Part Studies Acquired 2 | . . . 2 Parts Repaired 1 | . . . 1 Time 32 | . . . 32 Parts Recycled . | . . . . Recycled Matter . | . . . . Retrieved Matter . | . . . . Retrieved Components . | . . . . Parts Scanalyzed . | . . . . Part Schematics Acquired . | . . . . Parts Damaged . | . . . . Bothacking | -11 -10 -9 -8 ------------ Run | Yrd Mat Mat Mat Used RIF Installer . | . . . . Robots Hacked . | . . . . Non-combat . | . . . . Combat . | . . . . Robot Hacks Applied . | . . . . Relay Couplers Released . | . . . . Fabnet Peak Effective % . | . . . . Robots Rewired . | . . . . Allies Hacked . | . . . . Hacks Repelled . | . . . . Allies | -11 -10 -9 -8 -------- Run | Yrd Mat Mat Mat Total Allies . | . . . . Largest Group . | . . . . Highest-Rated Group . | . . . . Highest-Rated Ally . | . . . . Total Orders . | . . . . Ally Attacks . | . . . . Total Damage . | . . . . Kills . | . . . . Allies Corrupted . | . . . . Allies Melted . | . . . . Intel | -11 -10 -9 -8 ------- Run | Yrd Mat Mat Mat Active Infowar (turns) 2121 | 54 704 428 935 Sensors 935 | . . . 935 Seismic 1186 | 54 704 428 . ECM 100 | . . 100 . Robot Analysis Total . | . . . . Derelict Logs Recovered . | . . . . Drone Launches . | . . . . Drone Recoveries . | . . . . Exploration | -11 -10 -9 -8 ------------- Run | Yrd Mat Mat Mat Turns Passed 3793 | 131 1185 1035 1442 Spaces Moved 1692 | 60 567 521 544 Core 14 | 4 . . 10 Treads 1419 | 56 567 281 515 Legs . | . . . . Wheels 259 | . . 240 19 Hover . | . . . . Flight . | . . . . Fastest Speed 50 | 50 160 95 50 Average Speed 165 | 152 160 141 196 Slowest Speed 240 | 160 160 240 240 Overloaded Moves . | . . . . Propulsion Burnouts . | . . . . Robots Hopped . | . . . . Potential Cave-ins . | . . . . Cave-ins Triggered . | . . . . Exploration Rate (%) 34 | 4 66 35 32 Regions Visited 3 Branch Regions . Pre-discovered Areas . | . . . . Known Exits Taken . | . . . . Unknown Exits Taken 3 | 1 1 1 . Scrap Searched . | . . . . Spaces Dug 18 | . . 18 . Terrain Destroyed 85 | . 26 59 . Melee 2 | . . 2 . Projectile 3 | . . 3 . AOE 80 | . 26 54 . Terrain Rammed . | . . . . Walls Destroyed . | . . . . Machines Disabled . | . . . . Actions | -11 -10 -9 -8 --------- Run | Yrd Mat Mat Mat Total 2372 | 82 770 720 800 Wait 306 | . 125 79 102 Move 1689 | 59 566 520 544 Hop . | . . . . Pick Up 52 | 5 14 16 17 Fast Attach 20 | 6 . 2 12 Attach 17 | 1 1 2 13 Detach . | . . . . Swap 63 | . 12 30 21 Drop 46 | 1 4 18 23 Fire 130 | 10 36 26 58 Melee 34 | . . 27 7 Ram . | . . . . Kick . | . . . . Crush 15 | . 12 . 3 Escape Stasis . | . . . . Rewire . | . . . . Trap . | . . . . Miscellaneous . | . . . . Route ------- -11/Scrapyard -10/Materials (discovered 3 exits: *Mat x2 / [*Min]) -9/Materials -8/Materials (discovered 1 exit: [*Fac]) History --------- Turn | Location | Event 54 | -11/Scrapyard | Discovered new exit (range 15) 132 | -11/Scrapyard | Entered Materials 311 | -10/Materials | Build established: Mutant 664 | -10/Materials | Discovered new exit (range 15) 979 | -10/Materials | Discovered new exit (range 12) 1281 | -10/Materials | Discovered new exit (range 16) 1317 | -10/Materials | Entered another Materials area 1317 | -9/Materials | Evolved 2 slots: Utility x2 1696 | -9/Materials | Build established: Scavenger-Mutant 1810 | -9/Materials | Destroyed 9 combat bots 1945 | -9/Materials | Discovered new exit (range 7) 2046 | -9/Materials | Build established: Mutant 2352 | -9/Materials | Entered another Materials area 2352 | -8/Materials | Evolved 2 slots: Utility x2 2534 | -8/Materials | Repaired Imp. Ion Engine 3104 | -8/Materials | Discovered new exit (range 15) 3762 | -8/Materials | Core integrity fell below 50% 3778 | -8/Materials | Core integrity fell below 20% 3794 | -8/Materials | Destroyed by G-47 Trooper with Particle Gun Last Messages --------------- 03758_ Slug penetrates Wall. 03761_ Cooling System destroyed. 03763_ Critical hit (Burn: +37). 03764_ R-06 Scavenger collects Beam Rifle. 03767_ R-06 Scavenger collects Welding Torch. 03770_ H-61 Shepherd destroyed. 03770_ R-06 Scavenger collects Arm. Treads. 03773_ Adv. Beam Cannon destroyed. 03773_ R-06 Scavenger collects Hvy. Assault Rifle. 03776_ Lgt. Treads+ destroyed. 03779_ G-50 Soldier destroyed. 03782_ Axe destroyed. 03783_ G-47 Trooper destroyed. 03784_ Critical hit (Burn: +37). 03786_ Dropped Lrg. Storage Unit. 03786_ Acquired 2 matter. 03788_ Pulse Rifle destroyed. 03790_ U-05 Engineer builds a Wall. 03791_ Acquired Lgt. Treads+. 03792_ U-05 Engineer builds a Wall. Map ----- +----------------------------------------------------+ | ??????# """ """ #???????????????# """ """ #??? | | ??????# """ """ #???????????????# """ """ #??? | | ??????# """ """ #???????????????# """ """ #??? | | ??????# ! #???????????????# = #??? | | ??????######+###########################+######??? | | ????????# ###### | | ????????# < # | | ????????# # | | ??????######+####################+####### # " " | | ??????# #??????????# !! #?# # """" | | ??????# #??????????# """ ! #?# # """ | | ??????# /#??????????# "Y" ! #?# + | | ??????# *=!= #??????????# ### ###### | | ??????# =/#??????????# ## #????? | | ??????# ]= #??????????# """ ### ##???? | | ??????# ! = #??????????# """ ## ##### | | ??????#############??????????# """ ## | | ??????????#######????????????# ## | | ?????????????????????????????########### | | ????????????????????????########???????# ##### | | ????????????????????????# !!! ########## ###### | | ????????????????????????# !!! ;## # # | | ????????????????????????# !!! !]## # # * [ | | ????????????????????????# =%!!### " " + + * | | ????????????????????????# %g%%u### "R" # # | | ????????????????????????#@!g!%*#?# """ # # | | ??????????????????# ###g##/###?# # # * | | ????????????? !=%[##??######## # | | ??????????????????# ######!#??????????# ###### | | ??????????????????????????##%#??????????# #????? | | ????????????????????######?# #???######## #????? | | ????????????????????# """ # #???# ###### | | ????????????????????# """ # ##### % | | ????????????????????# """ + ##+### | | ????????????????????# * # ######/######### | | ????????????????????# # ## !#???# | | ????????????????????# ?# ## """"""" #???# [ | | ????????????????????######?# ## """""""!#???# | | ???????????????????????????# ## """""""*#???# "T" | | ???????????????????????????# ## """""""%#???# | | ???????????????????????????# ## """"""==#???###### | | ???????????????????????????# ## =[ #????????? | | ???????????????????????????? ?# [ ![!#????????? | | ???????????????????????????? ?###########????????? | | ???????????????????????????? ????????????????????? | | ???????????????????????????? ????????????????????? | | ???????????????????????????? ????????????????????? | | ???????????????????????????? ????????????????????? | | ???????????????????????????? ????????????????????? | | ????????????????????????????????????????????????^? | +----------------------------------------------------+ Best States ------------- Heat Dissipation 59 Energy Generation 16 Energy Capacity 290 Matter Stores 300 Matter Capacity 300 Sight Range 16 Robot Scan Range 15 Terrain Scan Density 10 ECM Strength 1 Armor Coverage 675 Resistance: TH 10 Utility Shielding 33 Evasion (%) 50 Targeting Accuracy 5 Recoil Reduction 2 Particle Charging 15 Item Schematics ----------------- None Robot Schematics ------------------ None Fabricated ------------ Nothing Repaired ---------- Imp. Ion Engine | 74% | -8/Materials Studied --------- Lgt. Treads | -8/Materials | Hacked Wheel | -8/Materials | Hacked Alien Tech Used ----------------- None Achievements -------------- None Challenges ------------ None Game ------ Seed InertialAntimissileRay Manual? 0 Play Time 00:35:28 Cumulative 91.3 hours Start 2025.11.25 @ 22:08:30 End 2025.11.25 @ 22:40:55 Sessions 1 Manual Loads 0 Difficulty Rogue Special Mode None Game No. 95 Rogue 95 Adventurer 0 Explorer 0 Win Type - Total 0 Types 0/0/0/0/0/0/0/0/0/0 Lore% 61 Gallery% 44 Achievement% 37 Wizard Run 0 Options --------- Layout 0 ASCII 0 Keyboard 1 Movement Vi Keybinds 0 Fullscreen 2 Font 18/SmallcapsGlow Map View 76x50 Zoom Use 0% Tactical HUD 1 Map Filters NONE Filters NONE Steam 1 RUN: b6f05d43-1764-4970-b6ac-37af0d3ecbb6